fUSD/lending_fUSD_20250223
["ID","MTS","AMOUNT","RATE_DAILY","PERIOD"]
[354169425,1740323432163,-503.18,0.00017573,2]
[354169427,1740323432172,-152.37,0.000176,2]
[354169429,1740323432181,-248.47459423,0.00017662,2]
[354169433,1740323432211,-248.03540577,0.00017662,2]
[354169435,1740323432221,-509.85459473,0.000177,2]
[354169437,1740323432234,-490.14540527,0.000177,2]
[354169439,1740323432243,-20.52907573,0.00017976,2]
[354169441,1740323432254,-132.47092427,0.00017976,2]
[354169443,1740323432265,-423.85663573,0.00018,15]
[354169447,1740323432293,-236.54336427,0.00018,15]
[354169449,1740323432302,-319.58548494,0.00018,2]
[354169514,1740323437410,-1004.57485244,0.00018,2]
[354169528,1740323439952,-630.6114065,0.00018,2]
[354169529,1740323439964,-58.10825612,0.00018,2]
[354169530,1740323439973,-361.54174386,0.0001802,2]
[354169531,1740323439985,-138.78825614,0.0001802,2]
[354169532,1740323439995,-468.42054303,0.00018088,2]
[354169554,1740323442479,-531.57945697,0.00018088,2]
[354169556,1740323442489,-483.6558,0.00018113,2]
[354169558,1740323442499,-14152.14370323,0.00018142,2]
[354169560,1740323442508,-150.0,0.00018214,2]
[354169561,1740323442517,-150.0,0.00018231,2]
[354169562,1740323442527,-150.0,0.00018242,2]
[354169563,1740323442536,-1000.0,0.00018246,2]
[354169564,1740323442545,-150.0,0.00018254,2]
[354169565,1740323442554,-150.0,0.00018265,2]
[354169566,1740323442563,-150.0,0.00018266,2]
[354169567,1740323442573,-150.0,0.00018266,2]
[354169568,1740323442582,-150.0,0.00018273,2]
[354169569,1740323442591,-1134.413,0.00018277,2]
[354169570,1740323442601,-150.0,0.0001828,2]
[354169571,1740323442610,-150.0,0.00018282,2]
[354169572,1740323442620,-150.0,0.0001829,2]
[354169573,1740323442629,-33041.0987,0.00018293,2]
[354169574,1740323442638,-1000.0,0.00018293,2]
[354169575,1740323442647,-297.06926528,0.00018297,2]
[354169576,1740323442656,-1000.0,0.00018298,2]
[354169577,1740323442666,-9114.5346,0.000183,2]
[354169578,1740323442675,-627.65726841,0.00018301,2]
[354169579,1740323442684,-297.06926514,0.00018302,2]
[354169580,1740323442694,-150.0,0.00018303,2]
[354169581,1740323442703,-150.0,0.00018305,2]
[354169582,1740323442712,-297.06926514,0.00018308,2]
[354169583,1740323442721,-1277.29545,0.0001831,2]
[354169584,1740323442730,-1000.0,0.00018313,2]
[354169585,1740323442739,-297.06926514,0.00018313,2]
[354169586,1740323442748,-297.06926514,0.00018319,2]
[354169587,1740323442757,-1004.57485244,0.0001832,2]
[354169588,1740323442767,-150.0,0.0001832,2]
[354169589,1740323442777,-297.06926514,0.00018324,2]
[354169590,1740323442787,-150.0,0.00018328,2]
[354169591,1740323442796,-1000.0,0.00018329,2]
[354169592,1740323442805,-297.06926514,0.0001833,2]
[354169593,1740323442814,-150.0,0.00018333,2]
[354169594,1740323442823,-150.0,0.00018333,2]
[354169595,1740323442832,-297.06926514,0.00018335,2]
[354169596,1740323442841,-297.06926514,0.0001834,2]
[354169597,1740323442851,-150.0,0.00018343,2]
[354169598,1740323442860,-297.06926514,0.00018346,2]
[354169599,1740323442869,-500.0,0.0001835,2]
[354169600,1740323442878,-500.0,0.00018351,2]
[354169601,1740323442887,-2000.0,0.00018351,2]
[354169602,1740323442897,-500.0,0.00018351,2]
[354169604,1740323442906,-500.0,0.00018351,2]
[354169606,1740323442915,-200.0,0.00018351,2]
[354169608,1740323442924,-150.0,0.00018351,2]
[354169609,1740323442934,-1000.0,0.00018367,2]
[354169611,1740323442944,-150.0,0.00018368,2]
[354169612,1740323442952,-150.0,0.00018369,2]
[354169613,1740323442961,-150.0,0.00018378,2]
[354169614,1740323442970,-150.0,0.0001838,2]
[354169615,1740323442979,-8096.70998763,0.0001838,2]
[354169616,1740323442988,-150.0,0.00018382,2]
[354169617,1740323442998,-8096.70998757,0.00018382,2]
[354169618,1740323443007,-8096.70998757,0.00018384,2]
[354169619,1740323443015,-8096.70998757,0.00018387,2]
[354169620,1740323443025,-8096.70998757,0.00018389,2]
[354169621,1740323443034,-836.902,0.0001839,2]
[354169622,1740323443043,-150.0,0.0001839,2]
[354169623,1740323443052,-310.18171054,0.0001839,2]
[354169624,1740323443061,-8096.70998757,0.00018391,2]
[354169625,1740323443070,-8096.70998757,0.00018393,2]
[354169626,1740323443079,-8096.70998757,0.00018396,2]
[354169627,1740323443088,-7500.0,0.00018397,2]
[354169628,1740323443097,-151.49454754,0.00018397,2]
[354169629,1740323443106,-522.1633697,0.00018397,2]
[354169630,1740323443115,-8096.70998757,0.00018398,2]
[354169631,1740323443124,-151.49454754,0.00018399,2]
[354169632,1740323443133,-522.16336968,0.00018399,2]
[354169633,1740323443142,-1000.0,0.00018399,2]
[354169634,1740323443152,-866.59759691,0.000184,3]
[354169635,1740323443163,-861.6318,0.000184,2]
[354169636,1740323443173,-1258.7466,0.000184,2]
[354169637,1740323443182,-545.4791,0.000184,2]
[354169638,1740323443191,-3363.0527,0.000184,2]
[354169639,1740323443200,-5800.0,0.000184,2]
[354169640,1740323443210,-151.49454754,0.000184,2]
[354169641,1740323443219,-150.0,0.000184,2]
[354169642,1740323443228,-174.12386343,0.000184,2]
[354169643,1740323443239,-11584.5179,0.000184,2]
[354169644,1740323443250,-8096.70998757,0.000184,2]
[354169645,1740323443260,-5800.0,0.000184,2]
[354169646,1740323443269,-522.16336968,0.000184,2]
[354169647,1740323443278,-310.18171054,0.000184,2]
[354169648,1740323443287,-150.0,0.00018401,2]
[354169649,1740323443296,-150.0,0.00018404,2]
[354169650,1740323443305,-150.0,0.00018406,2]
[354169651,1740323443314,-1000.0,0.00018414,2]
[354169652,1740323443324,-150.0,0.00018417,2]
[354169653,1740323443333,-150.0,0.00018444,2]
[354169654,1740323443342,-150.0,0.00018445,2]
[354169655,1740323443352,-1000.0,0.00018456,2]
[354169656,1740323443361,-150.0,0.00018456,2]
[354169657,1740323443370,-150.0,0.00018461,2]
[354169658,1740323443380,-150.0,0.00018462,2]
[354169659,1740323443389,-150.0,0.00018464,2]
[354169660,1740323443398,-409.93851653,0.00018473,2]
[354169661,1740323443546,-1000.0,0.00018476,2]
[354169662,1740323443556,-10501.3304179,0.00018486,3]
[354169663,1740323443566,-84010.643343,0.00018487,3]
[354169664,1740323443575,-10501.3304179,0.00018489,3]
[354169665,1740323443584,-1285.43076066,0.00018489,5]
[354169666,1740323443593,-349.10197057,0.00018489,2]
[354169667,1740323443602,-1459.77682499,0.0001849,3]
[354169668,1740323443619,-83450.26808239,0.0001849,3]
[354169669,1740323443638,-135617.89386762,0.0001849,3]
[354169670,1740323443647,-21002.6608357,0.0001849,3]
[354169671,1740323443657,-87807.23236817,0.00018496,7]
[354169672,1740323443666,-151.0,0.00018496,2]
[354169673,1740323443675,-151.0,0.00018496,2]
[354169674,1740323443684,-151.0,0.00018496,2]
[354169675,1740323443693,-151.0,0.00018496,2]
[354169676,1740323443703,-151.0,0.00018496,2]
[354169677,1740323443712,-151.0,0.00018496,2]
[354169678,1740323443721,-151.0,0.00018496,2]
[354169679,1740323443730,-171.951512,0.00018496,2]
[354169680,1740323443739,-151.0,0.00018496,2]
[354169681,1740323443748,-151.0,0.00018496,2]
[354169682,1740323443758,-151.0,0.00018496,2]
[354169683,1740323443767,-151.0,0.00018496,2]
[354169684,1740323443778,-212.595938,0.00018496,2]
[354169685,1740323443787,-212.595938,0.00018496,2]
[354169686,1740323443796,-151.0,0.00018496,2]
[354169687,1740323443806,-809.94613,0.00018496,2]
[354169688,1740323443815,-809.94613,0.00018496,2]
[354169689,1740323443824,-190.110503,0.00018496,2]
[354169690,1740323443834,-136371.96428351,0.00018497,7]
[354169691,1740323443845,-987.29202,0.00018497,7]
[354169702,1740323445674,-2500.0,0.00018379,2]
[354169703,1740323445684,-1460.5831,0.00018379,2]
[354169704,1740323445693,-17675.53444115,0.00018497,7]
[354169705,1740323445702,-151.0,0.00018497,2]
[354169706,1740323445711,-151.0,0.00018497,2]
[354169707,1740323445720,-151.0,0.00018497,2]
[354169708,1740323445730,-151.0,0.00018497,2]
[354169709,1740323445739,-151.0,0.00018497,2]
[354169710,1740323445748,-151.0,0.00018497,2]
[354169711,1740323445758,-151.0,0.00018497,2]
[354169712,1740323445767,-229.649032,0.00018497,2]
[354169713,1740323445776,-151.0,0.00018497,2]
[354169714,1740323445785,-151.0,0.00018497,2]
[354169717,1740323445795,-151.0,0.00018497,2]
[354169720,1740323445804,-151.0,0.00018497,2]
[354169721,1740323445813,-261.803828,0.00018497,2]
[354169722,1740323445821,-151.0,0.00018497,2]
[354169723,1740323445829,-151.0,0.00018497,2]
[354169724,1740323445838,-151.747621,0.00018497,2]
[354169725,1740323445847,-151.0,0.00018497,2]
[354169726,1740323445856,-151.0,0.00018497,2]
[354169727,1740323445864,-184.272323,0.00018497,2]
[354169728,1740323445873,-151.0,0.00018497,2]
[354169729,1740323445882,-2004.505696,0.00018497,2]
[354169730,1740323445891,-2004.505696,0.00018497,2]
[354169731,1740323445901,-151.0,0.00018497,2]
[354169732,1740323445910,-151.0,0.00018497,2]
[354169733,1740323445919,-178.234932,0.00018497,2]
[354169734,1740323445929,-151.0,0.00018497,2]
[354169735,1740323445938,-151.0,0.00018497,2]
[354169736,1740323445947,-151.0,0.00018497,2]
[354169737,1740323445956,-151.0,0.00018497,2]
[354169738,1740323445965,-151.0,0.00018497,2]
[354169739,1740323445975,-151.0,0.00018497,2]
[354169740,1740323445984,-165.950669,0.00018497,2]
[354169741,1740323445993,-151.0,0.00018497,2]
[354169742,1740323446003,-151.0,0.00018497,2]
[354169743,1740323446012,-212.595938,0.00018497,2]
[354169744,1740323446022,-212.595938,0.00018497,2]
[354169745,1740323446031,-151.0,0.00018497,2]
[354169746,1740323446040,-151.0,0.00018497,2]
[354169747,1740323446051,-151.0,0.00018497,2]
[354169748,1740323446060,-206.868893,0.00018497,2]
[354169749,1740323446070,-809.94613,0.00018497,2]
[354169750,1740323446079,-809.94613,0.00018497,2]
[354169751,1740323446089,-151.0,0.00018497,2]
[354169752,1740323446098,-1000.0,0.00018498,2]
[354169753,1740323446108,-150.0,0.00018498,2]
[354169754,1740323446118,-151.0,0.00018499,2]
[354169755,1740323446127,-151.0,0.00018499,2]
[354169756,1740323446137,-151.0,0.00018499,2]
[354169757,1740323446146,-500.0,0.00018499,2]
[354169758,1740323446159,-20040.0,0.00018499,3]
[354169759,1740323446169,-999.0,0.00018499,2]
[354169760,1740323446178,-963.0,0.00018499,2]
[354169761,1740323446188,-68714.24627328,0.00018499,5]
[354169762,1740323446201,-268.94121712,0.00018499,5]
[354169763,1740323571564,992.883248,0.0002,120]
[354169765,1740324308368,32665.24,0.0001,2]
[354169766,1740324350620,-10000.0,0.0001,2]
[354169767,1740324351570,-10000.0,0.0001,2]
[354169768,1740324352102,-10000.0,0.0001,2]
[354169769,1740324352461,-10000.0,0.0001,2]
[354169770,1740324352978,-10000.0,0.0001,2]
[354169771,1740324353594,-10000.0,0.0001,2]
[354169772,1740324353727,-10000.0,0.0001,2]
[354169773,1740324354241,-10000.0,0.0001,2]
[354169774,1740324354591,-10000.0,0.0001,2]
[354169775,1740324355146,-10000.0,0.0001,2]
[354169776,1740324355668,-10000.0,0.0001,2]
[354169777,1740324356410,-10000.0,0.0001,2]
[354169778,1740324356938,-10000.0,0.0001,2]
[354169779,1740324357254,-10000.0,0.0001,2]
[354169780,1740324357797,-10000.0,0.0001,2]
[354169781,1740324358176,-10000.0,0.0001,2]
[354169782,1740324358608,-10000.0,0.0001,2]
[354169783,1740324359129,-10000.0,0.0001,2]
[354169784,1740324413113,-1519.174706,9.95e-05,2]
[354169785,1740324413137,-8480.825294,0.0001,2]
[354169786,1740324413946,-10000.0,0.0001,2]
[354169787,1740324414601,-10000.0,0.0001,2]
[354169788,1740324415142,-10000.0,0.0001,2]
[354169789,1740324415660,-10000.0,0.0001,2]
[354169790,1740324416129,-10000.0,0.0001,2]
[354169791,1740324416635,-10000.0,0.0001,2]
[354169792,1740324417109,-10000.0,0.0001,2]
[354169793,1740324417607,-10000.0,0.0001,2]
[354169794,1740324418129,-10000.0,0.0001,2]
[354169795,1740324419966,-10000.0,0.0001,2]
[354169797,1740324440628,-10000.0,0.0001,2]
[354169798,1740324441396,-10000.0,0.0001,2]
[354169799,1740324442038,-10000.0,0.0001,2]
[354169800,1740324442961,-10000.0,0.0001,2]
[354169801,1740324445875,-10000.0,0.0001,2]
[354169802,1740324446821,-10000.0,0.0001,2]
[354169803,1740324448199,-10000.0,0.0001,2]
[354169804,1740324493075,-7299.87467097,0.0001,2]
[354169805,1740324493097,-2700.12532903,0.0001,2]
[354169806,1740324493900,-10000.0,0.0001,2]
[354169807,1740324494669,-10000.0,0.0001,2]
[354169808,1740324495370,-10000.0,0.0001,2]
[354169809,1740324496044,-10000.0,0.0001,2]
[354169810,1740324496692,-10000.0,0.0001,2]
[354169811,1740324497377,-10000.0,0.0001,2]
[354169812,1740324497969,-10000.0,0.0001,2]
[354169813,1740324498672,-10000.0,0.0001,2]
[354169814,1740324499428,-10000.0,0.0001,2]
[354169815,1740324500140,-10000.0,0.0001,2]
[354169816,1740324500856,-10000.0,0.0001,2]
[354169817,1740324501480,-10000.0,0.0001,2]
[354169818,1740324502126,-10000.0,0.0001,2]
[354169819,1740324502781,-10000.0,0.0001,2]
[354169824,1740324603134,10000.0,0.00020359,120]
[354169825,1740324623160,1218.58,0.00020359,120]
[354169829,1740324631711,-481.77776542,9.828e-05,2]
[354169831,1740324631724,-37.16223458,0.0001,2]
[354169832,1740324631938,-64.15530977,0.0001,2]
[354169833,1740324631951,-550.0,0.0001,2]
[354169834,1740324631964,-159.0,0.0001,3]
[354169835,1740324631978,-167.0,0.0001,3]
[354169836,1740324631991,-156.046912,0.00010958,2]
[354169837,1740324632004,-4.93511876,0.00010958,2]
[354169838,1740324632019,-155.09244324,0.00010958,2]
[354169839,1740324632032,-159.904739,0.00010958,2]
[354169840,1740324632045,-156.046912,0.00011041,2]
[354169841,1740324632059,-160.027562,0.00011041,2]
[354169842,1740324632071,-174.44397858,0.00011099,2]
[354169843,1740324632084,-150.0,0.00011123,2]
[354169844,1740324632096,-156.046912,0.00011123,2]
[354169845,1740324632109,-160.027562,0.00011123,2]
[354169846,1740324632122,-156.046912,0.00011205,2]
[354169847,1740324632135,-156.046912,0.00011287,2]
[354169848,1740324632147,-160.027562,0.00011287,2]
[354169849,1740324632160,-156.046912,0.00011369,2]
[354169850,1740324632172,-160.027562,0.00011369,2]
[354169851,1740324632184,-159.0,0.0001145,3]
[354169852,1740324632197,-186.31403118,0.00011468,2]
[354169853,1740324632223,-3656.54297482,0.00011468,2]
[354169854,1740324632237,-1597.65,0.00011527,2]
[354169855,1740324632251,-7077.19,0.00011621,2]
[354169856,1740324632264,-173.82,0.00011727,2]
[354169857,1740324632277,-4024.92,0.00011841,2]
[354169858,1740324632290,-5376.3,0.00012028,2]
[354169859,1740324632303,-150.0,0.00012054,2]
[354169860,1740324632315,-156.34424983,0.000123,2]
[354169861,1740324632328,-156.34424983,0.000123,2]
[354169862,1740324632341,-156.34424983,0.000123,2]
[354169863,1740324632355,-2937.76,0.00012433,2]
[354169864,1740324632368,-156.34424983,0.00012446,2]
[354169865,1740324632381,-156.34424983,0.00012843,2]
[354169866,1740324632394,-159.0,0.000129,3]
[354169867,1740324632407,-1500.0,0.00012914,2]
[354169868,1740324632421,-940.51479937,0.00013,2]
[354169869,1740324632435,-156.34424983,0.0001324,2]
[354169870,1740324632447,-48387.4455238,0.0001337,2]
[354169871,1740324637785,-747.45731041,0.0001337,2]
[354169880,1740324640100,-268619.968,0.0001337,2]
[354169881,1740324640745,-475.918582,0.0001337,2]
[354169893,1740324645648,-192990.60651321,0.0001337,2]
[354169894,1740324645658,-580.85903313,0.00013437,2]
[354169895,1740324645668,-159.35885759,0.00013537,2]
[354169896,1740324645677,-156.34424983,0.00013637,2]
[354169897,1740324645687,-173.82,0.00013681,2]
[354169898,1740324645696,-196.2,0.00013699,2]
[354169899,1740324645706,-7396.97,0.00013699,2]
[354169900,1740324645715,-159.35,0.00013702,2]
[354169901,1740324645724,-580.85903307,0.00013988,2]
[354169902,1740324645734,-156.34424983,0.00014034,2]
[354169903,1740324645743,-159.0,0.00014349,3]
[354169904,1740324645753,-156.34424983,0.00014431,2]
[354169905,1740324645762,-580.85903307,0.0001454,2]
[354169906,1740324645772,-174.44397858,0.00014629,2]
[354169907,1740324645781,-179141.773674,0.000148,2]
[354169908,1740324645791,-156.34424983,0.00014827,2]
[354169909,1740324645800,-6747.07789862,0.000149,2]
[354169910,1740324645863,-855.0104,0.000149,2]
[354169911,1740324645875,-2532.16472197,0.000149,2]
[354169913,1740324849351,196.98,8.767e-05,2]
[354169914,1740324911032,167.0,8.767e-05,3]
[354169915,1740324912577,159.0,8.767e-05,3]
[354169916,1740324970801,159.0,8.767e-05,3]
[354169917,1740325027812,159.0,8.767e-05,3]
[354169918,1740325087111,159.0,8.767e-05,3]
[354169919,1740325158773,160.0,8.767e-05,3]
[354169920,1740325212445,168.0,8.767e-05,3]
[354169921,1740325212488,160.0,8.767e-05,3]
[354169925,1740325267911,160.0,8.767e-05,3]
[354169928,1740325331474,160.0,8.767e-05,3]
[354169945,1740325831917,-300.0,0.00010957,2]
[354169946,1740325831926,-152.225549,0.00010958,2]
[354169947,1740325831935,-88.83329323,0.00010958,2]
[354169948,1740325831950,-70.41777377,0.00010958,2]
[354169949,1740325831959,-449.179379,0.00010958,2]
[354169950,1740325831968,-159.945401,0.00010958,2]
[354169951,1740325831978,-160.858606,0.00010958,2]
[354169952,1740325831987,-2820.07982811,0.00010958,2]
[354169953,1740325831998,-3417.71609367,0.00010958,2]
[354169954,1740325832010,-2584.6,0.00010958,2]
[354169955,1740325832022,-501.8039728,0.00010958,2]
[354169956,1740325832038,-2659.93197334,0.00010958,2]
[354169957,1740325832050,-596.31743766,0.00010958,2]
[354169958,1740325832059,-150.0,0.00010999,2]
[354169959,1740325832068,-152.225549,0.00011041,2]
[354169960,1740325832078,-449.179379,0.00011041,2]
[354169961,1740325832087,-152.225549,0.00011123,2]
[354169962,1740325832097,-449.179379,0.00011123,2]
[354169963,1740325832106,-159.251067,0.00011205,2]
[354169964,1740325832116,-449.179379,0.00011205,2]
[354169965,1740325832126,-159.945401,0.00011205,2]
[354169966,1740325832135,-160.858606,0.00011205,2]
[354169967,1740325832144,-152.225549,0.00011287,2]
[354169968,1740325832154,-449.179379,0.00011287,2]
[354169969,1740325832163,-152.225549,0.00011369,2]
[354169970,1740325832173,-449.179379,0.00011369,2]
[354169971,1740325832183,-420.0,0.00012041,2]
[354169972,1740325832196,-500.0,0.00012054,2]
[354169973,1740325832205,-150.0,0.00012054,2]
[354169974,1740325832214,-489.81566801,0.00012188,2]
[354169975,1740325832223,-163.75,0.00012943,2]
[354169976,1740325832234,-587.0,0.00013232,2]
[354169978,1740325832243,-946.01,0.00013698,2]
[354169980,1740325832252,-196.2,0.00013699,2]
[354169982,1740325832264,-380.0,0.0001411,2]
[354169984,1740325832273,-718.46,0.00014446,2]
[354169986,1740325832282,-432.3128609,0.00014593,2]
[354169988,1740325832291,-1268.28809,0.000149,2]
[354169990,1740325832301,-173.82,0.00015636,2]
[354169992,1740325832310,-400.0,0.0001573,2]
[354169994,1740325832319,-4000.0,0.00015739,2]
[354169996,1740325832328,-1852.42,0.00015879,2]
[354169998,1740325832337,-163.75,0.00016179,2]
[354170000,1740325832346,-1105.38,0.00016283,2]
[354170002,1740325832356,-172.88,0.00016297,2]
[354170004,1740325832366,-226.92,0.00016336,2]
[354170006,1740325832376,-1000.0,0.00016392,2]
[354170008,1740325832385,-500.0,0.00016445,2]
[354170010,1740325832395,-4624.54,0.00016445,2]
[354170012,1740325832404,-200.0,0.00016588,2]
[354170014,1740325832413,-1977.53,0.00016591,2]
[354170016,1740325832422,-1096.1835429,0.00016591,2]
[354170018,1740325832433,-903.8164571,0.00016591,2]
[354170020,1740325832443,-150.0,0.00016644,2]
[354170022,1740325832452,-59.04932395,0.00016644,2]
[354170025,1740325832477,-90.95067605,0.00016644,2]
[354170027,1740325832486,-150.00000001,0.00016644,2]
[354170030,1740325832496,-1099.66895685,0.00016649,2]
[354170031,1740325832505,-1787.0,0.0001665,2]
[354170034,1740325832515,-3918.0,0.0001665,2]
[354170035,1740325832524,-346.213,0.0001665,2]
[354170037,1740325832533,-150.0,0.0001665,2]
[354170040,1740325832543,-500.0,0.00016704,2]
[354170041,1740325832552,-718.46,0.0001671,2]
[354170044,1740325832561,-250.0,0.0001676,2]
[354170045,1740325832570,-150.0,0.00016775,2]
[354170047,1740325832579,-190.72,0.00016972,2]
[354170050,1740325832589,-1331.278,0.00017,2]
[354170051,1740325832599,-300.0,0.00017,6]
[354170053,1740325832608,-2441.0,0.000171,3]
[354170055,1740325832617,-600.0,0.000171,6]
[354170057,1740325832626,-1000.0,0.000172,6]
[354170059,1740325832637,-1300.0,0.000173,6]
[354170061,1740325832646,-338.84,0.00017388,2]
[354170063,1740325832656,-1700.0,0.000174,6]
[354170065,1740325832664,-338.84,0.00017452,2]
[354170067,1740325832674,-300.0,0.000175,6]
[354170069,1740325832683,-338.84,0.00017516,2]
[354170071,1740325832692,-338.84,0.0001758,2]
[354170073,1740325832701,-173.82,0.0001759,2]
[354170075,1740325832710,-300.0,0.000176,6]
[354170077,1740325832720,-338.84,0.00017644,2]
[354170079,1740325832729,-300.0,0.000177,6]
[354170080,1740325832738,-338.84,0.00017708,2]
[354170095,1740325832852,-338.84,0.00017772,2]
[354170098,1740325832886,-300.0,0.000178,6]
[354170100,1740325832895,-338.84,0.00017836,2]
[354170102,1740325832905,-756.0,0.000179,6]
[354170104,1740325832915,-338.84,0.000179,2]
[354170106,1740325832924,-338.84,0.00017964,2]
[354170108,1740325832934,-338.84,0.00018028,2]
[354170110,1740325832945,-338.84,0.00018093,2]
[354170112,1740325832954,-530.3104,0.000181,2]
[354170114,1740325832964,-1708.2857,0.000181,2]
[354170116,1740325832973,-733.2751,0.000181,2]
[354170118,1740325832983,-5204.0362,0.000181,2]
[354170120,1740325832992,-1510.7848,0.000181,2]
[354170122,1740325833002,-338.84,0.00018157,2]
[354170124,1740325833011,-5640.14334977,0.0001819,2]
[354170126,1740325833020,-156.34424987,0.0001819,2]
[354170128,1740325833030,-160.78932813,0.0001819,2]
[354170130,1740325833039,-1774.6689271,0.0001819,2]
[354170132,1740325833049,-12570.4379,0.000182,2]
[354170134,1740325833058,-22406.4081,0.000182,2]
[354170136,1740325833068,-2322.5407,0.000182,2]
[354170138,1740325833078,-174.28893872,0.000182,2]
[354170140,1740325833087,-5640.14334977,0.00018213,2]
[354170142,1740325833098,-156.34424983,0.00018213,2]
[354170144,1740325833108,-1774.66892706,0.00018213,2]
[354170145,1740325833117,-338.84,0.00018221,2]
[354170147,1740325833128,-889.95732048,0.00018226,2]
[354170149,1740325833137,-5640.14334977,0.00018237,2]
[354170151,1740325833147,-156.34424983,0.00018237,2]
[354170153,1740325833157,-1774.66892706,0.00018237,2]
[354170155,1740325833167,-150.0,0.00018247,2]
[354170157,1740325833176,-150.0,0.0001826,2]
[354170159,1740325833189,-5640.14334977,0.0001826,2]
[354170161,1740325833199,-156.34424983,0.0001826,2]
[354170163,1740325833209,-1774.66892706,0.0001826,2]
[354170164,1740325833223,-150.0,0.00018266,2]
[354170166,1740325833233,-501.61116148,0.00018273,2]
[354170167,1740325833243,-601.28602835,0.00018273,2]
[354170169,1740325833253,-161.63324089,0.00018273,2]
[354170171,1740325833263,-304.5253121,0.00018273,2]
[354170173,1740325833274,-150.0,0.00018278,2]
[354170174,1740325833285,-150.0,0.00018283,2]
[354170176,1740325833295,-5640.14334977,0.00018283,2]
[354170178,1740325833305,-156.34424983,0.00018283,2]
[354170180,1740325833315,-1774.66892706,0.00018283,2]
[354170181,1740325833324,-150.0,0.00018284,2]
[354170182,1740325833333,-338.84,0.00018285,2]
[354170183,1740325833343,-90446.02565398,0.00018289,2]
[354170184,1740325833353,-32005.5032896,0.0001829,2]
[354170185,1740325833366,-67557.87243852,0.0001829,2]
[354170186,1740325833392,-591.826501,0.0001829,2]
[354170198,1740325837788,-1110.0,0.0001665,2]
[354170199,1740325837798,-8910.96021377,0.0001829,2]
[354170201,1740325837870,-998.1595154,0.0001829,2]
[354170202,1740325837966,-9585.74799999,0.0001829,2]
[354170203,1740325837977,-460.19080289,0.0001829,2]
[354170239,1740325840259,-88888.47519083,0.0001829,2]
[354170240,1740325840269,-115196.985107,0.0001829,2]
[354170241,1740325840279,-1644.4037,0.0001829,2]
[354170242,1740325840288,-6647.7446,0.0001829,2]
[354170243,1740325840297,-8228.35607904,0.00018297,2]
[354170244,1740325840306,-300.0,0.00018299,2]
[354170245,1740325840315,-203.34505927,0.00018299,5]
[354170246,1740325840323,-251247.46392732,0.000183,5]
[354170247,1740325840483,-67975.67481133,0.000183,5]
[354170248,1740325840494,-6712.78520781,0.000183,5]
[354170249,1740325840505,-5345.96539232,0.000183,5]
[354170250,1740325840573,-599.73698605,0.000183,5]
[354170251,1740325840585,-5300.0,0.000183,5]
[354170252,1740325840596,-629.23687052,0.000183,5]
[354170253,1740325840671,-97509.36397191,0.000183,5]
[354170254,1740325840682,-3010.833224,0.000183,2]
[354170255,1740325840692,-169022.23280409,0.000183,2]
[354170261,1740325842979,-2745.4001,0.000183,2]
[354170262,1740325842991,-9799.8901,0.000183,2]
[354170263,1740325843003,-5766.17478965,0.000183,2]
[354170264,1740325843015,-1296.20833664,0.000183,2]
[354170265,1740325843036,-3422.54166336,0.000183,2]
[354170266,1740325843047,-1304.74043877,0.000183,2]
[354170267,1740325843059,-506.99089773,0.000183,2]